bitfinex/quotes_ETHUSD_20220731
["timestamp","ask_amount","ask_price","bid_price","bid_amount"]
[1659233913999,3.49804672,1704.9,1704.4,0.34173376]
[1659233914818,0.3,1704.9,1704.4,0.34173376]
[1659233914978,3.6,1705.0,1704.4,0.34173376]
[1659233915177,6.50102731,1705.0,1704.4,0.34173376]
[1659233918679,6.96604023,1705.0,1704.4,0.34173376]
[1659233919099,6.50102731,1705.0,1704.4,0.34173376]
[1659233922396,6.96604023,1705.0,1704.4,0.34173376]
[1659233925457,6.96604023,1705.0,1704.5,0.19999917]
[1659233925458,3.60298059,1705.0,1704.5,0.19999917]
[1659233925660,0.30298059,1705.0,1704.5,0.54173293]
[1659233926661,15.32271292,1705.1,1704.7,0.19999917]
[1659233926853,14.8577,1705.1,1704.8,0.34173376]
[1659233927497,6.5695,1705.1,1704.8,0.34173376]
[1659233927873,6.37161292,1705.3,1704.8,0.34173376]
[1659233928074,0.3,1705.2,1704.8,0.78143376]
[1659233928475,0.3,1705.2,1704.8,0.34173376]
[1659233928695,0.3,1705.2,1704.6,0.4397]
[1659233928922,3.3,1705.2,1704.6,0.4397]
[1659233929107,3.6,1705.2,1704.6,0.4397]
[1659233929682,4.06501292,1705.2,1704.6,0.4397]
[1659233930098,0.00298059,1705.1,1704.6,0.4397]
[1659233930501,0.00298059,1705.1,1704.5,3.7586]
[1659233930717,2.90102731,1705.1,1704.3,2.6802]
[1659233930893,2.89804672,1705.0,1704.3,2.4904]
[1659233931092,2.89804672,1705.0,1704.3,5.4904]
[1659233931337,0.00298059,1704.9,1704.3,5.4904]
[1659233931492,0.00298059,1704.9,1704.3,3.64173376]
[1659233932133,0.00298059,1704.9,1704.3,7.14173376]
[1659233932337,0.00298059,1704.9,1704.3,3.64173376]
[1659233933719,0.00298059,1704.9,1704.3,10.03978048]
[1659233933924,0.00298059,1704.9,1704.4,0.4398]
[1659233935163,0.00298059,1704.9,1704.3,7.17958048]
[1659233935327,0.00298059,1704.9,1704.3,3.67958048]
[1659233935930,0.00298059,1704.9,1704.3,7.17958048]
[1659233936929,0.00298059,1704.9,1704.3,3.67958048]
[1659233937269,0.00298059,1704.9,1704.3,3.68344513]
[1659233937472,0.00298059,1704.9,1704.4,0.19999917]
[1659233939902,0.00298059,1704.9,1704.3,3.24364513]
[1659233940528,0.00298059,1704.9,1704.3,0.34559841]
[1659233940890,1.06799351,1705.0,1704.3,0.34559841]
[1659233941090,3.91604023,1705.0,1704.3,0.34559841]
[1659233941541,3.3154,1704.9,1704.3,0.34559841]
[1659233946413,3.3154,1704.9,1704.3,3.84559841]
[1659233946624,3.3154,1704.9,1704.3,0.34559841]
[1659233946827,3.3154,1704.9,1704.3,3.84559841]
[1659233947030,3.3154,1704.9,1704.6,0.19999917]
[1659233947233,3.3154,1704.9,1704.6,0.34471435]
[1659233948056,0.05,1705.2,1704.6,0.34471435]
[1659233948226,21.27791292,1705.3,1704.6,0.34471435]
[1659233948414,24.17595964,1705.3,1704.6,0.34471435]
[1659233949214,21.27791292,1705.3,1704.6,3.24276107]
[1659233949413,0.3,1705.2,1704.6,3.24276107]
[1659233950139,0.3,1705.2,1704.6,6.74276107]
[1659233950350,0.3,1705.2,1704.6,3.24276107]
[1659233950853,0.3,1705.2,1704.6,6.74276107]
[1659233951059,0.3,1705.2,1704.6,3.24276107]
[1659233952554,3.3323,1705.3,1704.7,0.4397]
[1659233952850,3.3323,1705.3,1704.6,7.18246107]
[1659233953160,3.7718,1705.3,1704.6,7.18246107]
[1659233953717,4.0718,1705.3,1704.6,7.18246107]
[1659233953918,7.171,1705.3,1704.6,7.18246107]
[1659233954358,7.171,1705.3,1704.6,6.74276107]
[1659233955519,7.171,1705.3,1704.6,3.24276107]
[1659233955761,7.63601292,1705.3,1704.6,3.24276107]
[1659233955932,7.63601292,1705.3,1704.6,3.44276024]
[1659233956326,9.39804672,1705.2,1704.5,0.05]
[1659233956548,7.03144672,1705.1,1704.4,0.05]
[1659233956798,5.89804672,1705.0,1704.3,0.05]
[1659233956992,0.4396,1704.9,1704.3,0.34471435]
[1659233957280,4.0625,1704.9,1704.3,0.34471435]
[1659233959471,4.0625,1704.9,1704.3,3.84471435]
[1659233959671,4.0625,1704.9,1704.3,0.34471435]
[1659233960744,3.3229,1704.9,1704.3,3.84471435]
[1659233960897,3.3229,1704.9,1704.3,0.34471435]
[1659233964365,3.3229,1704.9,1704.3,3.24276107]
[1659233964554,3.3229,1704.9,1704.4,2.89804672]
[1659233965144,3.3229,1704.9,1704.4,2.89412687]
[1659233965572,3.3229,1704.9,1704.4,6.59412604]
[1659233965779,3.3229,1704.9,1704.4,3.09412604]
[1659233966069,3.0229,1704.9,1704.4,6.59412604]
[1659233966276,3.0229,1704.9,1704.5,0.34471435]
[1659233978684,3.0229,1704.9,1704.0,0.4399]
[1659233978685,3.53774672,1704.8,1704.0,0.4399]
[1659233978885,0.2,1704.6,1703.7,8.0084]
[1659233979099,3.63774672,1704.5,1703.7,7.5684]
[1659233979451,3.63774672,1704.5,1703.8,3.84471435]
[1659233979452,3.68774672,1704.5,1703.8,3.84471435]
[1659233979589,22.17741292,1704.6,1703.8,7.34471435]
[1659233979790,24.61044672,1704.6,1703.8,7.34471435]
[1659233980035,24.61044672,1704.6,1703.8,3.84471435]
[1659233980418,24.61044672,1704.6,1703.8,6.74276107]
[1659233980603,24.61044672,1704.6,1703.8,10.24276107]
[1659233980804,21.61044672,1704.6,1703.8,6.74276107]
[1659233981010,21.61044672,1704.6,1703.8,3.24276107]
[1659233981232,21.61044672,1704.6,1703.8,6.69276107]
[1659233981391,21.61044672,1704.6,1703.8,3.19276107]
[1659233981594,21.61044672,1704.6,1703.9,10.53794589]
[1659233981595,17.9727,1704.6,1703.9,10.53794589]
[1659233981829,17.6227,1704.6,1704.2,0.19999917]
[1659233982325,9.3015,1704.6,1704.2,0.19999917]
[1659233982538,0.05,1704.9,1704.3,2.89804672]
[1659233982838,3.2442,1704.9,1704.5,0.19999917]
[1659233983619,3.2442,1704.9,1704.5,0.49471352]
[1659233985246,3.2442,1704.9,1704.5,0.19999917]
[1659233985613,3.2442,1704.9,1704.2,10.37779917]
[1659233985614,3.5442,1704.9,1704.2,10.37779917]
[1659233985852,3.48969999,1704.8,1704.2,13.02584672]
[1659233986054,6.38774671,1704.8,1704.2,7.797]
[1659233986364,6.38774671,1704.8,1704.0,3.55]
[1659233986605,9.54024671,1704.8,1704.0,9.89804672]
[1659233987794,9.54024671,1704.8,1704.0,6.39804672]
[1659233988374,9.10054671,1704.8,1704.0,6.39804672]
[1659233988578,9.10054671,1704.8,1704.1,0.29471435]
[1659233994894,1.0397,1704.7,1704.1,0.29471435]
[1659233996390,3.64219999,1704.8,1704.5,0.19999917]
[1659233996556,3.20249999,1704.8,1704.5,0.19999917]
[1659233997828,0.04999999,1704.8,1704.5,0.19999917]
[1659233998968,3.48969999,1704.8,1704.2,0.05]
[1659233999170,6.7634692,1704.8,1704.1,2.3468]
[1659233999374,3.78969999,1704.8,1704.1,2.3468]
[1659234000360,3.39804672,1704.7,1704.0,7.5563]
[1659234000561,3.19804672,1704.7,1704.0,7.5063]
[1659234000760,3.3352,1704.6,1704.0,7.5063]
[1659234000993,3.6352,1704.6,1704.0,7.5063]
[1659234001290,3.63314226,1704.6,1704.0,7.5063]
[1659234001496,3.63314226,1704.6,1704.0,7.80101435]
[1659234004086,0.04999999,1704.5,1704.0,7.80101435]
[1659234008388,0.04999999,1704.5,1704.0,7.8221027]
[1659234008594,2.94804671,1704.5,1704.0,0.3158027]
[1659234008902,3.38774671,1704.5,1704.0,0.02108835]
[1659234009130,2.94804671,1704.5,1704.0,0.02108835]
[1659234009328,0.02780641,1704.2,1703.8,0.05]
[1659234009532,0.02780641,1704.2,1703.7,0.73471435]
[1659234009760,0.02780641,1704.2,1703.7,0.29471435]
[1659234014323,6.71509999,1704.3,1703.7,0.29471435]
[1659234014560,0.02780641,1704.0,1703.7,0.29471435]
[1659234016234,0.02780641,1704.0,1703.5,8.25]
[1659234016423,0.0778064,1704.0,1703.5,11.14804672]
[1659234016632,0.0778064,1704.0,1703.3,0.05]
[1659234016633,0.2,1703.4,1703.3,0.05]
[1659234016869,0.2,1703.2,1702.9,0.81269025]
[1659234017132,0.04999999,1703.1,1702.9,0.76269025]
[1659234017354,0.04999999,1703.1,1702.5,3.3217]
[1659234017553,0.04999999,1703.1,1702.5,3.2717]
[1659234018165,2.94804671,1703.1,1702.4,7.6222]
[1659234018335,3.54804671,1703.1,1702.4,7.6222]
[1659234018965,0.64999999,1703.1,1702.5,3.79471435]
[1659234019271,0.4901,1703.2,1702.6,7.19999917]
[1659234019272,0.05,1703.2,1702.6,7.19999917]
[1659234019575,17.7881,1703.3,1702.6,7.19999917]
[1659234019576,17.4881,1703.3,1702.6,7.81618353]
[1659234019788,17.4881,1703.3,1702.7,0.47069871]
[1659234019932,0.02780641,1703.0,1702.7,0.47069871]
[1659234020605,0.02780641,1703.0,1702.7,0.29471435]
[1659234021398,0.02780641,1703.0,1702.7,3.79471435]
[1659234021561,0.02780641,1703.0,1702.7,6.69276107]
[1659234021763,0.02780641,1703.0,1702.8,9.70031021]
[1659234021964,0.02780641,1703.0,1702.9,14.03246024]
[1659234022173,0.02780641,1703.0,1702.9,16.83246107]
[1659234022769,0.02780641,1703.0,1702.9,25.01186107]
[1659234023001,0.02416586,1703.0,1702.9,24.57166107]
[1659234024287,0.02416586,1703.0,1702.9,18.07166107]
[1659234025916,0.69816586,1703.0,1702.5,0.05]
[1659234026090,0.69816586,1703.0,1702.5,13.79554672]
[1659234026291,0.674,1703.0,1702.5,13.79554672]
[1659234026679,0.02416586,1702.8,1702.5,10.45514672]
[1659234027084,0.02416586,1702.8,1702.5,7.5571]
[1659234028691,0.02416586,1702.8,1702.4,0.29471435]
[1659234028918,0.04999999,1702.7,1702.1,0.05]
[1659234029118,0.04999999,1702.7,1702.2,2.89804672]
[1659234029619,0.04999999,1702.7,1702.2,2.84804672]
[1659234029981,0.04999999,1702.7,1702.2,2.84439417]
[1659234031964,0.02416586,1702.4,1702.2,2.84439417]
[1659234032258,0.02416586,1702.4,1702.3,0.29471435]
[1659234035257,0.02416586,1702.4,1702.3,3.79471435]
[1659234035524,0.02416586,1702.4,1702.3,6.86874543]
[1659234035674,0.02416586,1702.4,1702.3,7.0687446]
[1659234036038,0.02416586,1702.4,1702.3,3.5687446]
[1659234036240,0.02416586,1702.4,1702.3,2.89804672]
[1659234038073,0.02416586,1702.4,1702.2,2.89804672]
[1659234038284,0.02416586,1702.4,1702.1,9.28774672]
[1659234038433,0.09999999,1702.7,1702.2,3.5]
[1659234038637,0.04999999,1702.7,1702.2,3.5]
[1659234038862,0.02416586,1702.4,1702.2,3.79471435]
[1659234039314,0.02416586,1702.4,1702.2,0.29471435]
[1659234041009,0.02416586,1702.4,1702.0,7.8152]
[1659234041176,0.02416586,1702.4,1701.9,3.1583]
[1659234041177,0.22416586,1702.4,1701.9,3.1583]
[1659234041376,0.02416586,1702.4,1701.7,7.7938]
[1659234041623,2.92221258,1702.4,1701.7,7.7438]
[1659234041776,0.4403,1702.3,1701.7,7.7438]
[1659234042176,0.4403,1702.3,1701.6,0.00220582]
[1659234042413,0.4403,1702.3,1701.6,2.89804672]
[1659234042622,0.4403,1702.3,1701.5,0.05]
[1659234042623,2.89804672,1702.2,1701.5,0.05]
[1659234042804,2.89804672,1702.2,1701.4,8.7991]
[1659234042805,0.4404,1702.1,1701.4,6.4831]
[1659234043063,3.4404,1702.1,1701.4,9.33114672]
[1659234043263,3.4404,1702.1,1701.9,0.04901655]
[1659234043264,3.0,1702.1,1701.9,0.04901655]
[1659234043982,3.19804672,1702.0,1701.9,0.04901655]
[1659234044307,0.76456586,1702.0,1701.9,0.04901655]
[1659234044439,0.32416586,1702.0,1701.9,0.04901655]
[1659234044640,0.02416586,1702.0,1701.9,0.04901655]
[1659234045444,0.69816586,1702.0,1701.9,0.04901655]
[1659234045681,0.99816586,1702.0,1701.9,0.04901655]
[1659234047118,0.99816586,1702.0,1701.6,0.29471435]
[1659234047119,1.43856586,1702.0,1701.6,0.29471435]
[1659234047302,1.43856586,1702.0,1701.6,0.2702119]
[1659234047471,1.06456586,1702.0,1701.6,0.2702119]
[1659234047669,1.06456586,1702.0,1701.6,0.27341183]
[1659234048362,0.32416586,1702.0,1701.6,0.2702119]
[1659234048879,0.02416586,1702.0,1701.6,0.2702119]
[1659234049084,0.04999999,1702.1,1701.6,0.2702119]
[1659234049414,4.2528,1702.3,1702.0,3.5]
[1659234049415,1.05,1702.3,1702.0,3.5]
[1659234049591,8.2951,1702.5,1702.0,0.2702119]
[1659234050871,8.31960245,1702.5,1702.0,0.31090462]
[1659234051183,8.91960245,1702.5,1702.0,0.31090462]
[1659234052381,11.81764917,1702.5,1702.0,0.31090462]
[1659234052603,11.81764917,1702.5,1702.0,0.04069272]
[1659234052804,0.4403,1702.4,1702.0,0.04069272]
[1659234054088,0.04999999,1702.3,1702.0,0.04069272]
[1659234054339,0.02416586,1702.2,1702.0,0.04069272]
[1659234054649,0.76446586,1702.2,1701.6,0.05241954]
[1659234054842,0.24999999,1702.1,1701.6,0.00241954]
[1659234055051,0.24999999,1702.1,1702.0,0.04069272]
[1659234055255,3.14804671,1702.1,1702.0,0.04069272]
[1659234055408,3.58844671,1702.1,1702.0,0.04069272]
[1659234056008,3.58844671,1702.1,1701.6,0.05241954]
[1659234056250,2.89804672,1702.0,1701.6,0.00241954]
[1659234056544,3.58844671,1702.1,1701.5,0.2702119]
[1659234056749,6.75174671,1702.1,1701.5,0.2702119]
[1659234057356,6.75174671,1702.1,1701.5,0.27264985]
[1659234057561,6.19804672,1702.0,1701.5,0.00243795]
[1659234057722,0.46490245,1701.9,1701.5,0.00243795]
[1659234057921,0.02450245,1701.9,1701.5,0.00243795]
[1659234058147,0.02450245,1701.9,1701.2,0.05]
[1659234058356,2.92254917,1701.9,1701.1,9.79524672]
[1659234058527,6.56364917,1701.9,1701.1,9.74524672]
[1659234058726,9.84844917,1701.9,1701.4,0.00243809]
[1659234058967,9.79844917,1701.9,1701.4,0.00243809]
[1659234059671,0.02416586,1701.6,1701.2,0.05]
[1659234059827,0.02416586,1701.6,1701.2,0.2702119]
[1659234060028,0.02416586,1701.6,1701.2,0.27233971]
[1659234060667,0.04866831,1701.6,1701.2,0.00212781]
[1659234060973,0.04866831,1701.6,1701.0,8.425]
[1659234061136,0.04866831,1701.6,1700.8,0.05]
[1659234061137,0.3,1701.3,1700.8,0.05]
[1659234061471,0.24999999,1701.2,1700.6,8.0622]
[1659234061636,7.5,1701.1,1700.4,7.0648]
[1659234061849,0.2,1700.9,1700.3,0.05]
[1659234062052,3.38874671,1700.8,1700.1,0.05]
[1659234062289,3.38874671,1700.8,1700.0,3.55]
[1659234062290,5.89804672,1700.7,1700.0,3.55]
[1659234062445,3.33884672,1700.6,1700.0,3.5]
[1659234062646,3.19804672,1700.5,1700.0,3.5]
[1659234062896,0.4907,1700.7,1700.0,7.07849362]
[1659234063058,0.3,1700.7,1700.1,0.06988689]
[1659234063250,3.24804671,1700.7,1700.1,0.06988689]
[1659234063456,2.89804672,1700.6,1700.1,0.06988689]
[1659234064142,3.24804671,1700.7,1700.1,0.06988689]
[1659234064562,0.34999999,1700.7,1700.1,0.06988689]
[1659234064758,0.34999999,1700.7,1700.2,0.2702119]
[1659234064987,0.02416586,1700.4,1700.3,2.96792539]
[1659234065158,0.02416586,1700.4,1700.3,9.96792539]
[1659234065370,0.02416586,1700.4,1700.3,10.58470975]
[1659234065596,0.02416586,1700.4,1700.3,10.14390975]
[1659234066689,0.02416586,1700.4,1700.3,13.14390975]
[1659234067951,0.02416586,1700.4,1700.3,10.08470975]
[1659234068151,0.02416586,1700.4,1700.3,9.46792539]
[1659234068548,0.4,1699.1,1699.0,0.44144]
[1659234068750,2.51104097,1699.5,1699.0,0.44144]
[1659234068751,0.3,1699.3,1699.0,0.44144]
[1659234068948,0.4411,1699.4,1699.0,0.44144]
[1659234068949,2.89804672,1699.4,1699.0,0.44144]
[1659234069154,8.0268,1699.4,1699.0,0.44144]
[1659234069591,6.2087,1699.6,1699.0,0.44144]
[1659234069823,6.5087,1699.6,1699.0,0.44144]
[1659234070023,6.8087,1699.6,1699.0,0.44144]
[1659234070338,3.5,1699.2,1698.7,0.4413]
[1659234070542,1.0,1699.2,1698.1,8.6313522]
[1659234070698,0.05,1699.1,1699.0,7.0]
[1659234071021,0.02416586,1699.3,1698.8,9.01245981]
[1659234071345,0.02416586,1699.3,1698.6,7.1544]
[1659234071502,0.02416586,1699.3,1698.6,10.2131]
[1659234072124,0.41459303,1699.2,1698.6,10.21553481]
[1659234072505,0.41459303,1699.2,1698.6,0.00243481]
[1659234072710,3.33914672,1699.1,1698.6,0.00243481]
[1659234072946,3.61263975,1699.0,1698.6,0.00243481]
[1659234073237,1.4411,1699.1,1698.4,7.0]
[1659234073399,1.0,1699.1,1698.4,7.0]
[1659234073591,1.0,1699.1,1698.5,0.00243496]
[1659234074419,1.41459303,1699.1,1698.4,7.4413]
[1659234074638,1.41459303,1699.1,1698.3,3.4914]
[1659234074799,1.46459303,1699.1,1698.3,7.5414]
[1659234075004,1.46459303,1699.1,1698.5,0.00243503]
[1659234075313,4.31263975,1699.1,1698.5,0.00243503]
[1659234075831,4.31263975,1699.1,1698.3,4.15]
[1659234075832,0.02416586,1698.8,1698.3,4.15]
[1659234076045,0.02416586,1698.8,1698.4,3.0]
[1659234076405,0.02416586,1698.8,1698.5,0.00262749]
[1659234077036,0.02416586,1698.8,1698.5,7.00262749]
[1659234077237,0.02416586,1698.8,1698.3,7.4414]
[1659234077555,0.02416586,1698.8,1698.3,7.0]
[1659234078447,0.02416586,1698.8,1698.5,7.0]
[1659234078626,0.02416586,1698.8,1698.5,3.5]
[1659234078808,0.02416586,1698.8,1698.3,4.1]
[1659234079007,0.02416586,1698.8,1698.2,3.6]
[1659234079241,0.02416586,1698.8,1698.3,3.5]
[1659234079459,0.02416586,1698.8,1698.2,3.6]
[1659234079953,0.02416586,1698.8,1698.3,7.0]
[1659234080432,0.02416586,1698.8,1698.2,3.6]
[1659234080687,0.05,1698.9,1698.3,7.0]
[1659234080842,1.0,1699.1,1698.3,7.0]
[1659234080843,0.05,1699.0,1698.3,7.0]
[1659234081024,0.02416586,1698.6,1698.3,7.0]
[1659234081653,0.02416586,1698.6,1698.2,3.6]
[1659234081954,0.02416586,1698.6,1698.1,1.1313522]
[1659234082138,0.02416586,1698.6,1698.2,3.5]
[1659234082511,0.02416586,1698.6,1698.1,4.1313522]
[1659234082751,0.18875889,1698.9,1698.2,2.89804672]
[1659234083554,0.7912,1699.0,1698.3,0.01124111]
[1659234083758,3.63924672,1699.0,1698.5,0.01124111]
[1659234084475,3.63924672,1699.0,1698.3,0.06124111]
[1659234084650,3.63924672,1699.0,1698.2,2.94804672]
[1659234084974,3.68924672,1699.0,1698.2,2.89804672]
[1659234085563,0.18875889,1698.7,1698.1,1.1813522]
[1659234085730,3.63924672,1698.6,1698.3,0.00311101]
[1659234085933,0.18875889,1698.1,1698.0,0.35]
[1659234086246,0.48875889,1698.2,1697.6,0.05]
[1659234086571,0.48875889,1698.2,1697.4,3.1229]
[1659234086874,0.48875889,1698.2,1697.4,10.0729]
[1659234087082,0.48875889,1698.2,1697.5,0.34471435]
[1659234087377,0.48875889,1698.2,1697.5,7.34471435]
[1659234087668,0.48875889,1698.2,1697.5,0.34471435]
[1659234088461,1.05,1698.3,1697.8,7.0]
[1659234088675,0.4912,1698.5,1698.0,0.01124111]
[1659234088981,6.1778,1698.6,1698.0,0.01124111]
[1659234089333,6.1778,1698.6,1698.2,0.01124111]
[1659234089544,6.1778,1698.6,1697.9,0.05]
[1659234089743,9.07584672,1698.6,1697.8,3.05]
[1659234089942,9.56704672,1698.6,1697.7,3.35]
[1659234090169,3.2607,1698.6,1698.0,0.01124111]
[1659234090384,7.6592,1698.7,1698.2,0.01124111]
[1659234090544,7.6092,1698.7,1698.2,2.90928783]
[1659234090742,7.6092,1698.7,1698.5,0.01124111]
[1659234091358,0.4911,1699.0,1698.5,0.01124111]
[1659234091573,7.5547,1699.1,1698.5,0.01124111]
[1659234091789,0.18875889,1698.9,1698.3,0.05]
[1659234092021,0.18875889,1698.9,1698.0,6.5958]
[1659234092022,1.0,1698.6,1698.1,0.05]
[1659234092223,3.33914672,1698.8,1698.1,2.89804672]
[1659234092224,0.4911,1698.8,1698.1,2.89804672]
[1659234092375,0.4411,1698.8,1698.2,0.34471435]
[1659234093269,3.87790561,1698.9,1698.2,0.34471435]
[1659234093503,4.12790561,1698.9,1698.2,0.34471435]
[1659234094518,3.82790561,1698.9,1698.2,0.34471435]
[1659234094719,0.92985889,1698.9,1698.2,0.34471435]
[1659234094906,0.48875889,1698.9,1698.2,0.34471435]
[1659234095082,1.7911,1699.0,1698.2,0.34471435]
[1659234095420,7.98914672,1699.0,1698.2,0.34471435]
[1659234095582,5.0911,1699.0,1698.3,2.89804672]
[1659234095795,1.0,1699.0,1698.5,0.01124111]
[1659234095994,3.3811,1699.1,1698.5,12.7459553]
[1659234096234,3.3811,1699.1,1698.8,0.01124111]
[1659234096406,7.5469,1699.2,1698.8,0.35595546]
[1659234096590,3.3198,1699.4,1698.8,0.35595546]
[1659234096788,0.05,1699.5,1699.0,3.5]
[1659234097016,0.4909,1699.7,1699.1,0.01124111]
[1659234097231,0.05,1699.9,1699.7,0.01124111]
[1659234097439,5.8393,1700.3,1699.7,0.01124111]
[1659234097588,5.8393,1700.3,1699.7,2.90928783]
[1659234097589,2.7192,1700.3,1699.7,2.90928783]
[1659234097788,2.7192,1700.3,1699.7,0.35595546]
[1659234098036,3.1599,1700.3,1699.7,0.35595546]
[1659234098326,3.1599,1700.3,1699.7,0.34471435]
[1659234098484,3.33588436,1700.3,1699.5,0.05]
[1659234098685,3.33588436,1700.3,1699.4,7.9882]
[1659234098884,0.18875889,1699.9,1699.4,0.05]
[1659234099083,0.4409,1699.8,1699.2,0.05]
[1659234099320,0.4409,1699.8,1699.0,7.9777]
[1659234099550,0.4409,1699.8,1699.2,0.34471435]
[1659234099764,0.7409,1699.8,1699.2,0.34471435]
[1659234099919,1.0409,1699.8,1699.2,0.34471435]
[1659234100259,0.3,1699.8,1699.2,0.34471435]
[1659234100428,0.18875889,1699.7,1699.2,0.34471435]
[1659234100632,0.7409,1699.7,1699.2,0.34471435]
[1659234100953,0.7409,1699.7,1699.0,0.05]
[1659234101155,2.89804672,1699.6,1698.9,0.05]
[1659234101356,5.0409,1699.5,1698.8,0.05]
[1659234101511,7.93894672,1699.5,1698.7,0.05]
[1659234101710,7.98894672,1699.5,1698.8,0.34471435]
[1659234101957,7.93894672,1699.5,1698.8,0.34471435]
[1659234102461,7.93894672,1699.5,1698.9,0.00468504]
[1659234102757,4.93894672,1699.5,1699.0,0.34471435]
[1659234103117,4.63894672,1699.5,1699.0,0.34471435]
[1659234103323,4.33894672,1699.5,1699.0,0.34471435]
[1659234103518,6.097,1699.6,1699.1,0.0046845]
[1659234103519,6.5379,1699.6,1699.1,0.0046845]
[1659234103753,6.097,1699.6,1699.2,0.34471435]
[1659234104216,2.802,1699.6,1699.2,0.34471435]
[1659234106820,10.9577,1699.8,1699.3,0.0504273]
[1659234107050,0.4908,1700.0,1699.4,3.84471435]
[1659234107399,6.0261,1700.1,1699.5,2.89804672]
[1659234107585,2.9355,1700.1,1699.5,2.89804672]
[1659234107756,2.9355,1700.1,1699.6,0.34471435]
[1659234108094,5.83354672,1700.1,1699.6,0.34471435]
[1659234108287,6.43354672,1700.1,1699.6,0.34471435]
[1659234108474,6.87434672,1700.1,1699.6,0.34471435]
[1659234108663,7.06310561,1700.1,1699.6,0.34471435]
[1659234108861,10.16350561,1700.1,1699.6,0.34471435]
[1659234109551,9.97474672,1700.1,1699.6,0.34471435]
[1659234109751,7.0767,1700.1,1699.6,0.34471435]
[1659234110053,7.0767,1700.1,1699.6,0.35595546]
[1659234110252,9.53394672,1700.1,1699.6,0.36292492]
[1659234110478,0.4408,1700.0,1699.6,0.35168381]
[1659234110675,6.6359,1700.1,1699.6,0.35168381]
[1659234110883,7.0767,1700.1,1699.6,0.35168381]
[1659234113356,0.18875889,1700.0,1699.4,0.05]
[1659234113595,0.18875889,1700.0,1699.2,3.1442]
[1659234113596,0.18875889,1699.8,1699.2,3.1442]
[1659234113796,0.18875889,1699.8,1699.2,5.99224672]
[1659234114094,0.05,1699.9,1699.2,6.38174987]
[1659234114289,0.05,1700.0,1699.2,6.38174987]
[1659234114499,0.05,1700.0,1699.9,0.00333212]
[1659234114723,18.5767,1700.1,1699.9,0.00333212]
[1659234114926,21.47474672,1700.1,1699.9,0.00333212]
[1659234119326,21.47474672,1700.1,1699.9,0.00015293]
[1659234121089,21.66350561,1700.1,1699.9,0.00015293]
[1659234123188,9.78680561,1700.0,1699.9,0.00015293]
[1659234123692,6.90358997,1700.0,1699.9,0.00015293]
[1659234124608,6.70358997,1700.0,1699.9,0.00015293]
[1659234125712,6.51483108,1700.0,1699.9,0.00015293]
[1659234126912,6.51483108,1700.0,1698.3,4.3729]
[1659234126913,0.18875889,1699.5,1698.3,4.3729]
[1659234127121,11.3106821,1699.7,1698.4,13.89274672]
[1659234127122,3.69361239,1699.3,1698.4,13.89274672]
[1659234127329,3.69361239,1699.3,1698.4,17.39274672]
[1659234127330,10.02510022,1699.3,1698.4,17.39274672]
[1659234127523,2.89804672,1699.2,1698.4,7.7939]
[1659234128045,3.19804672,1699.2,1698.4,7.7939]
[1659234128252,10.33914672,1699.3,1698.6,0.01124111]
[1659234128462,10.58914672,1699.3,1698.6,0.01124111]
[1659234128746,7.6911,1699.3,1698.6,2.90928783]
[1659234129062,10.58914672,1699.3,1698.4,11.41595314]
[1659234129367,10.63914672,1699.3,1698.5,2.89804672]
[1659234129669,10.58914672,1699.3,1698.5,2.89804672]
[1659234129876,10.58914672,1699.3,1698.4,10.69194672]
[1659234129877,5.88179737,1699.2,1698.4,10.69194672]
[1659234130074,6.18179737,1699.2,1698.4,10.69194672]
[1659234130229,3.19804672,1699.2,1698.4,10.69194672]
[1659234130431,3.19804672,1699.2,1698.6,0.01124111]
[1659234130653,0.3,1699.2,1698.6,2.90928783]
[1659234130875,7.3911,1699.3,1698.5,3.5]
[1659234131077,10.58914672,1699.3,1698.5,2.89804672]
[1659234131274,7.6911,1699.3,1698.5,2.89804672]
[1659234131431,10.58914672,1699.3,1698.7,0.01124111]
[1659234131631,10.58914672,1699.3,1698.6,0.36344292]
[1659234133587,7.6911,1699.3,1698.6,0.36344292]
[1659234141721,0.38875889,1698.6,1698.5,0.05]
[1659234141929,0.38875889,1698.6,1696.5,8.3318]
[1659234141930,0.18875889,1696.8,1696.5,8.3318]
[1659234142111,2.92208886,1697.1,1696.1,27.32093877]
[1659234142278,0.91896766,1696.9,1696.1,27.32093877]
[1659234142485,1.0,1696.8,1696.1,27.32093877]
[1659234142723,1.0,1696.8,1696.2,0.4418]
[1659234142724,1.3,1696.8,1696.2,0.4418]
[1659234142886,1.3,1696.8,1696.1,27.32093877]
[1659234142887,2.61881642,1696.7,1696.1,27.32093877]
[1659234143087,1.0,1696.5,1695.5,3.45]
[1659234143284,0.05,1696.4,1695.6,0.442]
[1659234143485,0.05,1696.4,1696.0,0.2]
[1659234143787,0.05,1696.4,1695.5,0.442]
[1659234143788,3.89804672,1696.5,1695.6,3.7]
[1659234143988,1.05,1696.5,1695.7,0.4419]
[1659234144222,1.05,1696.5,1696.2,3.5]
[1659234144428,1.05,1696.5,1696.0,6.95]
[1659234144429,1.0,1696.5,1696.0,6.95]
[1659234144607,1.0,1696.5,1696.2,3.5]
[1659234145041,1.0,1696.5,1696.1,0.4418]
[1659234145042,1.0,1696.5,1696.0,7.3918]
[1659234145268,1.0,1696.5,1696.2,3.5]
[1659234145461,1.0,1696.5,1696.1,0.05411728]
[1659234145986,1.0,1696.5,1696.3,3.5]
[1659234146171,5.8245,1696.8,1696.3,3.7541109]
[1659234146319,10.12676766,1696.9,1696.3,0.0541109]
[1659234146320,2.28196765,1696.9,1696.3,0.0541109]
[1659234146951,2.28196765,1696.9,1696.3,3.5541109]
[1659234147359,2.28196765,1696.9,1696.3,3.55704402]
[1659234147770,2.28196765,1696.9,1696.4,0.2]
[1659234147940,1.36299999,1696.9,1696.4,0.2]
[1659234148322,1.36299999,1696.9,1696.3,0.0541109]
[1659234149361,2.98762108,1696.8,1696.3,0.0541109]
[1659234149556,2.98762108,1696.8,1696.1,0.05]
[1659234149557,3.33974672,1696.7,1696.1,0.05]
[1659234149758,2.89804672,1696.6,1695.9,0.05]
[1659234149958,3.7417,1696.5,1695.9,0.00270618]
[1659234150184,1.0,1696.3,1695.9,0.00270618]
[1659234150536,1.0,1696.3,1695.6,0.05]